Cogmind - Beta 11.1 @@@ ROGUE MODE // 2022.05.02 @ 13:19:57 // Winter2019/RPGLIKE Player: Kiks Result: Core destroyed Performance ------------- Evolutions (0) 0 Regions Visited (1) 200 Robots Destroyed (16) 80 Value Destroyed (439) 439 Prototype IDs (0) 0 Alien Tech Used (0) 0 Bonus (16) 16 TOTAL SCORE: 735 Bonus ------- High Alert Combat Kills 16 Cogmind --------- Core Integrity 0/600 Matter 228/300 Energy 140/160 System Corruption 0% Temperature Critical (782) Movement Walking (190) Ox1 Location -10/Materials Parts ------- > --- POWER (1) -------- Light Nuclear Core > --- PROPULSION (2) --- Aluminum Leg Aluminum Leg > --- UTILITY (2) ------ (None) > --- WEAPON (2) ------- Particle Gun Particle Gun > --- INVENTORY (3) ---- Light Ion Engine Peak State ------------ > --- POWER ------------ Light Nuclear Core > --- PROPULSION ------- Aluminum Leg Aluminum Leg > --- UTILITY ---------- (None) > --- WEAPON ----------- Particle Gun Particle Gun > --- INVENTORY -------- Light Ion Engine [Rating: 9] Favorites ----------- Power Ion Engine Engine Ion Engine Power Core Light Nuclear Core Propulsion Aluminum Leg Leg Aluminum Leg Utility None Weapon Assault Rifle Energy Gun Particle Gun Ballistic Gun Assault Rifle Build | -11 -10 ------- Run | Scr Mat Slots Evolved 3 | 3 . Power . | . . Propulsion 1 | 1 . Utility 1 | 1 . Weapon 1 | 1 . Parts Attached 9 | 5 4 Power 3 | 1 2 Engine 2 | 1 1 Core 1 | . 1 Reactor . | . . Propulsion 2 | 2 . Treads . | . . Leg 2 | 2 . Wheel . | . . Hover . | . . Flight . | . . Utility . | . . Device . | . . Storage . | . . Processor . | . . Hackware . | . . Protection . | . . Artifact . | . . Weapon 4 | 2 2 Energy Gun 2 | . 2 Energy Cannon . | . . Ballistic Gun 2 | 2 . Ballistic Cannon . | . . Launcher . | . . Special Weapon . | . . Impact Weapon . | . . Slashing Weapon . | . . Piercing Weapon . | . . Special Melee Weapon . | . . Unidentified Prototypes . | . . Parts Lost . | . . Power . | . . Propulsion . | . . Utility . | . . Weapon . | . . Highest Loss Streak . | . . To Critical Strikes . | . . Average Slot Usage (%) 71 | . 71 Engine 8 | . 8 Core 5 | . 5 Leg 28 | . 28 Energy Gun 11 | . 11 Ballistic Gun 16 | . 16 Naked Turns . | . . Heaviest Build 11 | 7 11 Greatest Support 20 | 20 20 Greatest Overweight (x) 1 | 1 . Average Overweight (x) . | . . Largest Inventory Capacity 3 | 3 3 Average Capacity 2 | 2 3 Most Carried 1 | . 1 Average Carried . | . . Final Capacity 3 | 3 3 Final Carried 1 | . 1 Class Distribution -------------------- 100% | Mutant Dominant Class ---------------- Mutant | -10/Materials Resources | -11 -10 ----------- Run | Scr Mat Matter Collected 566 | 262 304 Remotely . | . . Salvage Created 747 | 60 687 Parts 30 | 1 29 Haulers Intercepted 2 | . 2 Recyclers Shooed 1 | . 1 Parts Field Recycled . | . . Retrieved Matter . | . . Parts Self-Destructed . | . . Prevented . | . . Kills | -11 -10 ------- Run | Scr Mat Combat Hostiles Destroyed 10 | . 10 Guns 10 | . 10 Classes Destroyed 6 | 1 5 Worker 1 | . 1 Hauler 2 | . 2 Recycler 1 | 1 . Mechanic 1 | . 1 Watcher 1 | . 1 Grunt 10 | . 10 Best Kill Streak 4 | 1 4 Combat Bots Only 2 | . 2 Max Kills in Single Turn 1 | 1 1 Gunslinging . | . . Exploded . | . . Melee . | . . Uniques/NPCs Destroyed . | . . Combat | -11 -10 -------- Run | Scr Mat Damage Taken 930 | . 930 Core 770 | . 770 Absorbed by Shields . | . . Redirected to Core 512 | . 512 Core Remaining (%) 100 | 100 . Volleys Fired 63 | 2 61 Largest 2 | 2 2 Hottest 130 | 40 130 Shots Fired 126 | 4 122 Gun 126 | 4 122 Cannon . | . . Launcher . | . . Special . | . . Kinetic 92 | 4 88 Thermal 34 | . 34 Explosive . | . . Electromagnetic . | . . Robot Hit Streak 10 | 1 10 Robot Miss Streak 5 | 1 5 Penetration Max . | . . Secondary Targets 4 | . 4 Max Gunslinging Chain 1 | . 1 Shots Hit Robots 77 | 2 75 Core Hits 31 | 2 29 Critical Kills . | . . Critical Parts Destroyed . | . . Critical Strikes . | . . Melee Attacks . | . . Impact . | . . Slashing . | . . Piercing . | . . Sneak Attacks . | . . Combat Hostiles . | . . Follow-up Attacks . | . . Damage Inflicted 1041 | 23 1018 Guns 1041 | 23 1018 Cannons . | . . Explosions . | . . Melee . | . . Ramming . | . . Kinetic 739 | 23 716 Thermal 302 | . 302 Explosive . | . . Electromagnetic . | . . Impact . | . . Slashing . | . . Piercing . | . . Highest Corruption . | . . Average Corruption . | . . Corruption Purged . | . . Corruption Blocked . | . . Overload Shots . | . . Overflow Damage . | . . Projectiles . | . . Explosions . | . . Melee . | . . Knockbacks . | . . Impact . | . . Kinetic . | . . Secondary . | . . Self-Inflicted Damage . | . . Shots . | . . Rammed . | . . Targets Rammed . | . . Kicked . | . . Crushed . | . . Highest Temperature 782 | 6 782 Average Temperature 154 | 6 156 Received Heat Transfer 477 | . 477 Effects 5 | . 5 Shutdowns 1 | . 1 Matter Decay 1 | . 1 Short Circuit 1 | . 1 Damage (minor) 1 | . 1 Damage (core) 1 | . 1 Siege Activations . | . . Robots Corrupted . | . . Combat Hostiles . | . . Parts Fried . | . . Impact Corruptions . | . . Robots Melted . | . . Combat Hostiles . | . . Parts Melted 1 | . 1 Heat Transferred 740 | . 740 Parts Sabotaged . | . . Parts Stolen . | . . Parts Stripped . | . . Power Chain Reactions . | . . Missiles Intercepted . | . . Alert | -11 -10 ------- Run | Scr Mat Peak Influence 428 | 5 428 Initial 3 | . 3 Average 179 | 2 202 Maximum Alert Level 2 | . 2 Low Security (%) 51 | 100 44 Level 1 44 | . 50 Level 2 4 | . 5 Level 3 . | . . Level 4 . | . . Level 5 . | . . High Security . | . . Max Security . | . . Squads Dispatched 4 | . 4 Investigation 4 | . 4 Extermination . | . . Reinforcement . | . . Assault . | . . Garrison . | . . Intercept . | . . Searches Triggered . | . . Construction Impeded . | . . Haulers Reinforced . | . . Active Scanning Responses . | . . Cargo Convoy Interrupts . | . . Stealth | -11 -10 --------- Run | Scr Mat Distress Signals 1 | . 1 Communications Jammed . | . . Distress Signals . | . . Times Spotted 22 | . 22 Peak Tracking Total 5 | . 5 Tactical Retreats 3 | . 3 Traps | -11 -10 ------- Run | Scr Mat Traps Triggered 1 | . 1 Indirectly . | . . Trap Hack Attempts . | . . Triggered . | . . Disarmed . | . . Reprogrammed . | . . Reused . | . . Traps Extracted . | . . Installed . | . . Triggered . | . . Machines | -11 -10 ---------- Run | Scr Mat Machines Disabled 2 | . 2 Max in Single Turn 1 | . 1 Machines Sabotaged . | . . Garrisons Compromised . | . . Overloaded Fab Kills . | . . Hacking | -11 -10 --------- Run | Scr Mat Machines Accessed 5 | . 5 Terminals 5 | . 5 Fabricators . | . . Repair Stations . | . . Recycling Units . | . . Scanalyzers . | . . Garrison Access . | . . Total Hacks 18 | . 18 Successful 5 | . 5 Failed 13 | . 13 Catastrophic 2 | . 2 Database Lockouts . | . . Manual 13 | . 13 Terminals 18 | . 18 Fabricators . | . . Repair Stations . | . . Recycling Units . | . . Scanalyzers . | . . Garrison Access . | . . Terminal Hacks 2 | . 2 Recycling Unit Index 1 | . 1 Unreport Threat 1 | . 1 Fabricator Hacks . | . . Repair Station Hacks . | . . Recycling Unit Hacks . | . . Scanalyzer . | . . Garrison Access Hacks . | . . Unauthorized Hacks 3 | . 3 Terminals 3 | . 3 Botnet 3 | . 3 Fabricators . | . . Repair Stations . | . . Recycling Units . | . . Scanalyzers . | . . Garrison Access . | . . Data Cores Recovered . | . . Used . | . . Hacking Detections 5 | . 5 Full Trace Events 3 | . 3 Feedback Events . | . . Feedback Blocked . | . . Robot Schematics Acquired . | . . Robots Built . | . . Authchips . | . . Time . | . . Total Robot Build Rating . | . . Part Schematics Acquired . | . . Parts Built . | . . Authchips . | . . Time . | . . Total Part Build Rating . | . . Parts Repaired . | . . Time . | . . Parts Recycled . | . . Recycled Matter . | . . Retrieved Matter . | . . Retrieved Components . | . . Parts Scanalyzed . | . . Part Schematics Acquired . | . . Parts Damaged . | . . Bothacking | -11 -10 ------------ Run | Scr Mat Used RIF Installer . | . . Robots Hacked . | . . Non-combat . | . . Combat . | . . Robot Hacks Applied . | . . Relay Couplers Released . | . . Fabnet Peak Effective % . | . . Robots Rewired . | . . Allies Hacked . | . . Hacks Repelled . | . . Allies | -11 -10 -------- Run | Scr Mat Total Allies . | . . Largest Group . | . . Highest-Rated Group . | . . Highest-Rated Ally . | . . Total Orders . | . . Ally Attacks . | . . Total Damage . | . . Kills . | . . Allies Corrupted . | . . Allies Melted . | . . Intel | -11 -10 ------- Run | Scr Mat Robot Analysis Total . | . . Derelict Logs Recovered . | . . Drone Launches . | . . Drone Recoveries . | . . Exploration | -11 -10 ------------- Run | Scr Mat Turns Passed 435 | 51 384 Spaces Moved 177 | 35 142 Core 8 | 8 . Treads . | . . Legs 169 | 27 142 Wheels . | . . Hover . | . . Flight . | . . Fastest Speed 50 | 50 120 Average Speed 117 | 108 120 Slowest Speed 120 | 120 120 Overloaded Moves . | . . Propulsion Burnouts . | . . Robots Hopped . | . . Cave-ins Triggered . | . . Exploration Rate (%) 14 | 3 25 Regions Visited 1 Branch Regions . Pre-discovered Areas . | . . Known Exits Taken . | . . Unknown Exits Taken 1 | 1 . Scrap Searched . | . . Spaces Dug . | . . Terrain Destroyed . | . . Melee . | . . Projectile . | . . AOE . | . . Terrain Rammed . | . . Walls Destroyed . | . . Machines Disabled . | . . Actions | -11 -10 --------- Run | Scr Mat Total 277 | 41 236 Wait 21 | . 21 Move 176 | 34 142 Hop . | . . Pick Up . | . . Fast Attach 8 | 5 3 Attach . | . . Detach . | . . Swap 1 | . 1 Drop 3 | . 3 Fire 63 | 2 61 Melee . | . . Ram . | . . Kick . | . . Crush . | . . Escape Stasis . | . . Rewire . | . . Trap . | . . Miscellaneous 5 | . 5 Route ------- -11/Scrapyard -10/Materials History --------- Turn | Location | Event 6 | -11/Scrapyard | Upgraded with Propulsion slot (x1) 6 | -11/Scrapyard | Upgraded with Utility slot (x1) 6 | -11/Scrapyard | Upgraded with Weapon slot (x1) 11 | -11/Scrapyard | Discovered new exit (range 16) 52 | -11/Scrapyard | Entered Materials 240 | -10/Materials | Core integrity fell below 50% 310 | -10/Materials | Build established: Mutant 425 | -10/Materials | Core integrity fell below 20% 437 | -10/Materials | Core destroyed Last Messages --------------- 00405_ Connecting with Terminal... >>Trojan(Botnet) Trojan loaded successfully. Testing... Terminal linked with 2 systems. Awaiting botnet instructions. 00405_ ALERT: Suspicious activity at Terminal M004. Dispatching Investigation squad. 00408_ Material Processor disabled. 00417_ G-34 Mercenary destroyed. 00417_ Switching to secondary target: G-34 Mercenary. 00427_ Sml. Laser melted. 00427_ G-34 Mercenary destroyed. 00427_ Switching to secondary target: G-34 Mercenary. 00430_ Overheating: Particle Gun damaged (-24). 00431_ Aluminum Leg broken. 00431_ Overheating: Short circuit. 00433_ Power failure, Lgt. Nuclear Core shutdown. 00436_ Overheating: Matter decay (-72). 00437_ Overheating: Core damaged (-78). Map ----- +----------------------------------------------------+ | ?????????????????????????????????????????????????? | | ?????????????????????????????????????????????????? | | ?????????????????????????????????????????????????? | | ?????????????????????????????????????????????????? | | ?????????????????????????????????????????????????? | | ?????????????????????????????????????????????????? | | ?????????????????????????????????????????????????? | | ?????????????????????????????????????????????????? | | ?????????????????????????????????????????????????? | | ?????????????????????????????????????????????????? | | ?????????????????????????????????????????????????? | | ?????????????????????????????????????????????????? | | ?????????????????????????????????? ????????????? | | ?????????????????????????????????? ???????????? | | ?????????????????????????????????? ???????????? | | ?????????????????????????????????? ???????????? | | ?????????????????????????????????? #???????????? | | ?????????????????????????????????? #???????????? | | ?????????????????????????????????? #???????????? | | ?????????????????????????????????+ +???????????? | | ?????????????????????????????????# #???????????? | | ?????????????????????????????????# #???????????? | | ?????????????????????????????????# #???????????? | | ?????????????????????############# #???????????? | | ?????????????????????# ! gg%= # #???????????? | | ?????????????????????# " @ " gg # =%#???????????? | | ?????????????????????# T """"" + /[#???????????? | | ?????????????????????# " =""""" #/]%#????????? #? | | ?????????????????????# %""""" #!/]#???????? #? | | ?????????????????????# ! """ # =#????#?? #? | | ?????????????????????# g # #??? #?? #? | | ?????????????????????############# #??? #?? #? | | ?????????????????????##########T## #?? ??# ## | | ?????????????????????# """ ###+### # | | ?????????????????????# "T" # | | ?????????????????????# + | | ?????????????????????# """ # | | ?????????????????????# #### "T" # | | ?????????????????????# | #??# """ ## | | ?????????????????????# #??# """ #? | | ?????????????????????# """ #??# "" #? | | ?????????????????????# """ #??# *!%!= #? | | ?????????????????????# """ ####=* % #? | | ???????????????????? ##! #? | | ??????????????????? ###+######### #? | | ?????????????????? # ! %%#?????? #? | | ??????????????????########### #* [[ #?????? #? | | ??????????????????# T # #% [ #?????? ^ #? | | ??????????????????# # # * #??????? #? | | ??????????????????# + +% #??????? #? | +----------------------------------------------------+ Best States ------------- Heat Dissipation 25 Energy Generation 14 Energy Capacity 250 Matter Stores 300 Matter Capacity 300 Sight Range 16 Terrain Scan Density 10 Evasion (%) 55 Item Schematics ----------------- None Robot Schematics ------------------ None Fabricated ------------ Nothing Alien Tech Used ----------------- None Achievements -------------- None Challenges ------------ None RPGLIKE | -11 -10 --------- Run | Scr Mat Levels Raised . | . . XP Earned 4463 | 3000 1463 XP Spent 3000 | 3000 . Upgrades 6 | 6 . Propulsion Slot 1 | 1 . Utility Slot 1 | 1 . Weapon Slot 1 | 1 . Inventory Capacity 3 | 3 . Protomatter Created 39 | . 39 Integrity Restored 117 | . 117 Core 117 | . 117 Protomatter Decayed . | . . Game ------ Seed IonicAluminumBarrier Manual? 0 Play Time 00:07:20 Cumulative 108.5 hours Start 2022.05.02 @ 13:15:45 End 2022.05.02 @ 13:19:57 Sessions 1 Manual Loads 0 Difficulty Rogue Special Mode Winter2019/RPGLIKE Game No. 71 Rogue 32 Adventurer 5 Explorer 34 Win Type - Total 19 Types 10/0/4/4/1/0/0/0/0 Lore% 70 Gallery% 68 Achievement% 76 Wizard Run 0 Options --------- ASCII 0 Keyboard 0 Movement Mouse Keybinds 0 Fullscreen 1 Font 18/Terminus Map View 76x50 Tactical HUD 1 Map Filters NONE Filters NONE Steam 1 RUN: 5beb1670-c5b7-4db6-ba1c-3e498f0072c6